Workbook

Sheet 附表1-1
A1: 附表1-1
A2: 一般公共预算收入表
B3: 单位：万元
A4: 项目 | B4: 预算数
A5: 一、税收收入 | B5: 135282
A6: 增值税 | B6: 42000 | E6: 988753
A7: 企业所得税 | B7: 13600 | E7: 822672
A8: 个人所得税 | B8: 3600
A9: 资源税 | B9: 18 | E9: 988753
A10: 城市维护建设税 | B10: 15000 | E10: 822672
A11: 房产税 | B11: 7000
A12: 印花税 | B12: 3680
A13: 城镇土地使用税 | B13: 9500
A14: 土地增值税 | B14: 20424
A15: 车船税 | B15: 400
A16: 耕地占用税 | B16: 1000
A17: 契税 | B17: 19000
A18: 环境保护税 | B18: 60
A19: 其他税收收入
A20: 二、非税收入 | B20: 11518
A21: 专项收入 | B21: 6780
A22: 其中：教育费附加收入 | B22: 6430
A23: 残疾人就业保障金收入 | B23: 350
A24: 行政事业性收费收入 | B24: 500
A25: 罚没收入 | B25: 2410
A26: 国有资本经营收入
A27: 国有资源（资产）有偿使用收入 | B27: 1828
A28: 捐赠收入
A29: 政府住房基金收入
A30: 其他收入
A31: 合计 | B31: 146800

Sheet 附表1-2
A1: 附表1-2
A2: 一般公共预算支出表
B3: 单位：万元 | D3: 12.11 | F3: 12.22 | L3: 1.2
A4: 项目 | B4: 预算数 | F4: 科目编码 | G4: 科目（单位）名称 | H4: 合计 | L4: 科目编码 | M4: 科目（单位）名称 | N4: 合计
A5: 一、本级支出 | B5: =SUM(B6:B30) -> 99340 | C5: 105429 | D5: 595734.14 | E5: =104401+13602 -> 118003 | F5: 201 | G5: 一般公共服务支出类合计 | H5: 596221.15 | I5: =F5-A5 ->  | J5: =H5-B5 -> 496880.78 | K5: 75943 | L5: 201 | M5: 一般公共服务支出类合计 | N5: 643048.95 | O5: =L5-A5 ->  | P5: =N5-B5 -> 543708.58 | R5: 717759 | T5: 201 | U5: 一般公共服务支出类合计 | V5: 659380.53 | W5: =B5-V5 -> -560040.16 | X5: =T5-A5 -> 
A6: 一般公共服务支出 | B6: 16514
A7: 国防支出
A8: 公共安全支出 | B8: 5982
A9: 教育支出 | B9: 23699
A10: 科学技术支出 | B10: 8618
A11: 文化旅游体育与传媒支出 | B11: 766
A12: 社会保障和就业支出 | B12: 14099
A13: 卫生健康支出 | B13: 5328 | D13: 7616.62 | F13: 20101 | G13: 人大事务款合计 | H13: 7616.62 | J13: 2288.62 | L13: 20101 | M13: 人大事务款合计 | N13: 7749.58 | P13: 2421.58 | T13: 20101 | U13: 人大事务款合计 | V13: 8475.47 | W13: -3147.47
A14: 节能环保支出 | B14: 2932 | D14: 3922.87 | F14: 2010101 | G14: 行政运行项合计 | H14: 3922.87 | J14: 990.87 | K14: 750 | L14: 2010101 | M14: 行政运行项合计 | N14: 4041.81 | P14: 1109.81 | T14: 2010101 | U14: 行政运行项合计 | V14: 4680.94 | W14: -1748.94
A15: 城乡社区支出 | B15: 5843
A16: 农林水支出 | B16: 4340
A17: 交通运输支出 | B17: 188
A18: 资源勘探工业信息等支出
A19: 商业服务业等支出
A20: 金融支出
A21: 援助其他地区支出
A22: 自然资源海洋气象等支出 | B22: 503
A23: 住房保障支出 | B23: 1172
A24: 粮油物资储备支出
A25: 灾害防治及应急管理支出 | B25: 462.37
A26: 预备费 | B26: 2000
A27: 其他支出 | B27: 33
A28: 债务还本支出 | B28: 3261
A29: 债务付息支出 | B29: 3570
A30: 债务发行费用支出 | B30: 30
A31: 合计 | B31: 99340 | C31: 105429 | D31: 595734.14 | E31: =104401+13602 -> 118003 | F31: 201 | G31: 一般公共服务支出类合计 | H31: 596221.15 | J31: 496881 | K31: 75943 | L31: 201 | M31: 一般公共服务支出类合计 | N31: 643048.95 | P31: 543709 | R31: 717759 | T31: 201 | U31: 一般公共服务支出类合计 | V31: 659380.53 | W31: -560040.16
T32: 232 | U32: 债务付息支出类合计 | V32: 19998.00 | W32: -19998 | X32: 232
T33: 23203 | U33: 地方政府一般债务付息支出款合计 | V33: 19998.00 | W33: -19998 | X33: 23203
T34: 2320301 | U34: 地方政府一般债券付息支出项合计 | V34: 19998.00 | W34: -19998 | X34: 2320301

Sheet 附表1-3
A1: 附表1-3
A2: 一般公共预算本级支出表
C3: 单位：万元 | E3: 12.11 | G3: 12.22 | M3: 1.2
A4: 科目编码 | B4: 科目名称 | C4: 预算数 | G4: 科目编码 | H4: 科目（单位）名称 | I4: 合计 | M4: 科目编码 | N4: 科目（单位）名称 | O4: 合计
A5: 201 | B5: 一般公共服务支出 | C5: =C6+C10+C13+C15+C18+C20+C23+C26+C29+C31+C33+C36+C40 -> 16514 | D5: 105429 | E5: 595734.14 | F5: =104401+13602 -> 118003 | G5: 201 | H5: 一般公共服务支出类合计 | I5: 596221.15 | J5: =G5-A5 -> 0 | K5: =I5-C5 -> 579707.15 | L5: 75943 | M5: 201 | N5: 一般公共服务支出类合计 | O5: 643048.95 | P5: =M5-A5 -> 0 | Q5: =O5-C5 -> 626534.95 | S5: 717759 | U5: 201 | V5: 一般公共服务支出类合计 | W5: 659380.53 | X5: =C5-W5 -> -642866.53 | Y5: =U5-A5 -> 0
A6: 20103 | B6: 政府办公厅（室）及相关机构事务 | C6: =SUM(C7:C9) -> 9131 | E6: 7616.62 | G6: 20101 | H6: 人大事务款合计 | I6: 7616.62 | J6: -2 | K6: -1514.38 | M6: 20101 | N6: 人大事务款合计 | O6: 7749.58 | P6: -2 | Q6: -1381.42 | U6: 20101 | V6: 人大事务款合计 | W6: 8475.47 | X6: 655.53 | Y6: -2
A7: 2010301 | B7: 行政运行 | C7: 5855 | E7: 3922.87 | G7: 2010101 | H7: 行政运行项合计 | I7: 3922.87 | J7: -200 | K7: -1932.13 | L7: 750 | M7: 2010101 | N7: 行政运行项合计 | O7: 4041.81 | P7: -200 | Q7: -1813.19 | U7: 2010101 | V7: 行政运行项合计 | W7: 4680.94 | X7: 1174.06 | Y7: -200
A8: 2010302 | B8: 一般行政管理事务 | C8: =3015+12 -> 3027 | E8: 136 | G8: 2010199 | H8: 其他人大事务支出项合计 | I8: 135.60 | J8: (103) | K8: -2891 | M8: 2010199 | N8: 其他人大事务支出项合计 | O8: 135.60 | P8: (103) | Q8: -2891 | U8: 2010199 | V8: 其他人大事务支出项合计 | W8: 135.60 | X8: 2891.4 | Y8: -103
A9: 2010308 | B9: 信访事务 | C9: 249 | D9: 105429 | E9: 595734.14 | F9: =104401+13602 -> 118003 | G9: 201 | H9: 一般公共服务支出类合计 | I9: 596221.15 | J9: (2010107) | K9: 595972 | L9: 75943 | M9: 201 | N9: 一般公共服务支出类合计 | O9: 643048.95 | P9: (2010107) | Q9: 642800 | S9: 717759 | U9: 201 | V9: 一般公共服务支出类合计 | W9: 659380.53 | X9: -659131.53 | Y9: -2010107
A10: 20104 | B10: 发展与改革事务 | C10: =C11+C12 -> 520 | E10: 7617 | G10: 20101 | H10: 人大事务款合计 | I10: 7616.62 | J10: (3) | K10: 7097 | M10: 20101 | N10: 人大事务款合计 | O10: 7749.58 | P10: (3) | Q10: 7230 | U10: 20101 | V10: 人大事务款合计 | W10: 8475.47 | X10: -7955.47 | Y10: -3
A11: 2010401 | B11: 行政运行 | C11: 482 | E11: 3923 | G11: 2010101 | H11: 行政运行项合计 | I11: 3922.87 | J11: (300) | K11: 3441 | L11: 750 | M11: 2010101 | N11: 行政运行项合计 | O11: 4041.81 | P11: (300) | Q11: 3560 | U11: 2010101 | V11: 行政运行项合计 | W11: 4680.94 | X11: -4198.94 | Y11: -300
A12: 2010402 | B12: 一般行政管理事务 | C12: 38 | E12: 136 | G12: 2010199 | H12: 其他人大事务支出项合计 | I12: 135.60 | J12: (203) | K12: 98 | M12: 2010199 | N12: 其他人大事务支出项合计 | O12: 135.60 | P12: (203) | Q12: 98 | U12: 2010199 | V12: 其他人大事务支出项合计 | W12: 135.60 | X12: -97.6 | Y12: -203
A13: 20105 | B13: 统计信息事务 | C13: =C14 -> 62 | G13: ="" ->  | H13: ="" ->  | I13: ="" ->  | M13: ="" ->  | N13: ="" ->  | O13: ="" ->  | W13: =W14+#REF!+#REF!+#REF!+#REF!+#REF!+#REF!+#REF!+#REF!+#REF!+#REF!+#REF!+#REF!+#REF!+#REF!+#REF!+#REF!+#REF!+#REF!+#REF!+#REF! ->  | X13: =X14+#REF!+#REF!+#REF!+#REF!+#REF!+#REF!+#REF!+#REF!+#REF!+#REF!+#REF!+#REF!+#REF!+#REF!+#REF!+#REF!+#REF!+#REF!+#REF!+#REF! -> 
A14: 2010507 | B14: 专项普查活动 | C14: 62 | U14: 232 | V14: 债务付息支出类合计 | W14: 19998.00 | X14: =C14-W14 -> -19936 | Y14: =U14-A14 -> -2010275
A15: 20106 | B15: 财政事务 | C15: =C16+C17 -> 2971 | U15: 23203 | V15: 地方政府一般债务付息支出款合计 | W15: 19998.00 | X15: =C15-W15 -> -17027 | Y15: =U15-A15 -> 3097
A16: 2010601 | B16: 行政运行 | C16: 2901 | U16: 2320301 | V16: 地方政府一般债券付息支出项合计 | W16: 19998.00 | X16: =C16-W16 -> -17097 | Y16: =U16-A16 -> 309700
A17: 2010602 | B17: 一般行政管理事务 | C17: 70
A18: 20107 | B18: 税收事务 | C18: =C19 -> 1343
A19: 2010702 | B19: 一般行政管理事务 | C19: 1343
A20: 20108 | B20: 审计事务 | C20: 91
A21: 2010802 | B21: 一般行政管理事务 | C21: 26
A22: 2010804 | B22: 审计业务 | C22: 65
A23: 20111 | B23: 纪检监察事务 | C23: 186
A24: 2011101 | B24: 行政运行 | C24: 140
A25: 2011102 | B25: 一般行政管理事务 | C25: 46
A26: 20113 | B26: 商贸事务 | C26: 896
A27: 2011301 | B27: 行政运行 | C27: 341
A28: 2011308 | B28: 招商引资 | C28: 555
A29: 20126 | B29: 档案事务 | C29: 10
A30: 2012699 | B30: 其他档案事务支出 | C30: 10
A31: 20129 | B31: 群众团体事务 | C31: 264
A32: 2012902 | B32: 一般行政管理事务 | C32: 264
A33: 20132 | B33: 组织事务 | C33: =C34+C35 -> 220
A34: 2013202 | B34: 一般行政管理事务 | C34: 20
A35: 2013299 | B35: 其他组织事务支出 | C35: 200
A36: 20138 | B36: 市场监督管理事务 | C36: =SUM(C37:C39) -> 220
A37: 2013802 | B37: 一般行政管理事务 | C37: 150
A38: 2013805 | B38: 市场秩序执法 | C38: 40
A39: 2013810 | B39: 质量基础 | C39: 30
A40: 20199 | B40: 其他一般公共服务支出 | C40: =C41 -> 600
A41: 2019999 | B41: 其他一般公共服务支出 | C41: 600
A42: 204 | B42: 公共安全支出 | C42: =C43+C47+C492+C49+C52 -> 5982
A43: 20402 | B43: 公安 | C43: =SUM(C44:C46) -> 3833
A44: 2040202 | B44: 一般行政管理事务 | C44: =3325+39 -> 3364
A45: 2040220 | B45: 执法办案 | C45: 118
A46: 2040299 | B46: 其他公安支出 | C46: 351
A47: 20404 | B47: 检察 | C47: =C48 -> 308
A48: 2040402 | B48: 一般行政管理事务 | C48: =188+120 -> 308
A49: 20405 | B49: 法院 | C49: =C50+C51 -> 1406
A50: 2040501 | B50: 行政运行 | C50: 184
A51: 2040502 | B51: 一般行政管理事务 | C51: =1212+10 -> 1222
A52: 20406 | B52: 司法 | C52: =SUM(C53:C57) -> 435
A53: 2040602 | B53: 一般行政管理事务 | C53: 408
A54: 2040604 | B54: 基层司法业务 | C54: 2
A55: 2040606 | B55: 律师管理 | C55: 10
A56: 2040607 | B56: 公共法律服务 | C56: 2
A57: 2040610 | B57: 社区矫正 | C57: 13
A58: 205 | B58: 教育支出 | C58: =C59+C65 -> 23699
A59: 20502 | B59: 普通教育 | C59: =SUM(C60:C64) -> 14599
A60: 2050201 | B60: 学前教育 | C60: =411+112 -> 523
A61: 2050202 | B61: 小学教育 | C61: =7247+580 -> 7827
A62: 2050203 | B62: 初中教育 | C62: 2220
A63: 2050204 | B63: 高中教育 | C63: 3520
A64: 2050299 | B64: 其他普通教育支出 | C64: 509
A65: 20509 | B65: 教育费附加安排的支出 | C65: =SUM(C66:C67) -> 9100
A66: 2050901 | B66: 农村中小学校舍建设 | C66: 75
A67: 2050903 | B67: 城市中小学校舍建设 | C67: 9025
A68: 206 | B68: 科学技术支出 | C68: =C69+C72+C74 -> 8618
A69: 20601 | B69: 科学技术管理事务 | C69: =C70+C71 -> 3894
A70: 2060101 | B70: 行政运行 | C70: 737
A71: 2060102 | B71: 一般行政管理事务 | C71: 3157
A72: 20604 | B72: 技术研究与开发 | C72: =C73 -> 4024
A73: 2060499 | B73: 其他技术研究与开发支出 | C73: 4024
A74: 20605 | B74: 科技条件与服务 | C74: =C75 -> 700
A75: 2060502 | B75: 技术创新服务体系 | C75: 700
A76: 207 | B76: 文化旅游体育与传媒支出 | C76: =C77+C80+C83+C85 -> 766
A77: 20701 | B77: 文化和旅游 | C77: =C78+C79 -> 554
A78: 2070109 | B78: 群众文化 | C78: 141
A79: 2070199 | B79: 其他文化和旅游支出 | C79: 413
A80: 20703 | B80: 体育 | C80: =C81+C82 -> 192
A81: 2070307 | B81: 体育场馆 | C81: 140
A82: 2070308 | B82: 群众体育 | C82: 52
A83: 20706 | B83: 新闻出版电影 | C83: =C84 -> 7
A84: 2070607 | B84: 电影 | C84: 7
A85: 20799 | B85: 其他文化旅游体育与传媒支出 | C85: =C86 -> 13
A86: 2079999 | B86: 其他文化旅游体育与传媒支出 | C86: 13
A87: 208 | B87: 社会保障和就业支出 | C87: =C88+C94+C97+C104+C110+C114+C119+C122+C125+C127+C130+C132+C137+C102+C135 -> 14099
A88: 20801 | B88: 人力资源和社会保障管理事务 | C88: =SUM(C89:C93) -> 1286
A89: 2080101 | B89: 行政运行 | C89: 1105
A90: 2080104 | B90: 综合业务管理 | C90: 56
A91: 2080108 | B91: 信息化建设 | C91: 20
A92: 2080112 | B92: 劳动人事争议调解仲裁 | C92: 5
A93: 2080116 | B93: 引进人才费用 | C93: 100
A94: 20802 | B94: 民政管理事务 | C94: =SUM(C95:C96) -> 3139
A95: 2080208 | B95: 基层政权建设和社区治理 | C95: =3298-181 -> 3117
A96: 2080299 | B96: 其他民政管理事务支出 | C96: 22
A97: 20805 | B97: 行政事业单位养老支出 | C97: =SUM(C98:C101) -> 4300
A98: 2080501 | B98: 行政单位离退休 | C98: 348
A99: 2080502 | B99: 事业单位离退休 | C99: 1629
A100: 2080505 | B100: 机关事业单位基本养老保险缴费支出 | C100: 1571
A101: 2080506 | B101: 机关事业单位职业年金缴费支出 | C101: 752
A102: 20807 | B102: 就业补助 | C102: 843
A103: 2080799 | B103: 其他就业补助支出 | C103: 843
A104: 20808 | B104: 抚恤 | C104: =SUM(C105:C109) -> 881
A105: 2080801 | B105: 死亡抚恤 | C105: =16+1 -> 17
A106: 2080802 | B106: 伤残抚恤 | C106: =110+4 -> 114
A107: 2080803 | B107: 在乡复员、退伍军人生活补助 | C107: 227
A108: 2080805 | B108: 义务兵优待 | C108: =112+396 -> 508
A109: 2080899 | B109: 其他优抚支出 | C109: 15
A110: 20809 | B110: 退役安置 | C110: =SUM(C111:C113) -> 1172
A111: 2080901 | B111: 退役士兵安置 | C111: =445+2+74 -> 521
A112: 2080905 | B112: 军队转业干部安置 | C112: 30
A113: 2080999 | B113: 其他退役安置支出 | C113: 621
A114: 20810 | B114: 社会福利 | C114: =SUM(C115:C118) -> 283
A115: 2081001 | B115: 儿童福利 | C115: 2
A116: 2081002 | B116: 老年福利 | C116: 200
A117: 2081006 | B117: 养老服务 | C117: 39
A118: 2081099 | B118: 其他社会福利支出 | C118: 42
A119: 20811 | B119: 残疾人事业 | C119: =SUM(C120:C121) -> 43
A120: 2081107 | B120: 残疾人生活和护理补贴 | C120: 8
A121: 2081199 | B121: 其他残疾人事业支出 | C121: 35
A122: 20819 | B122: 最低生活保障 | C122: =SUM(C123:C124) -> 95
A123: 2081901 | B123: 城市最低生活保障金支出 | C123: 35
A124: 2081902 | B124: 农村最低生活保障金支出 | C124: 60
A125: 20820 | B125: 临时救助 | C125: =SUM(C126) -> 10
A126: 2082001 | B126: 临时救助支出 | C126: 10
A127: 20821 | B127: 特困人员救助供养 | C127: =SUM(C128:C129) -> 75
A128: 2082101 | B128: 城市特困人员救助供养支出 | C128: 25
A129: 2082102 | B129: 农村特困人员救助供养支出 | C129: 50
A130: 20826 | B130: 财政对基本养老保险基金的补助 | C130: =C131 -> 1689
A131: 2082602 | B131: 财政对城乡居民基本养老保险基金的补助 | C131: =1266+285+138 -> 1689
A132: 20828 | B132: 退役军人管理事务 | C132: =SUM(C133:C134) -> 73
A133: 2082802 | B133: 一般行政管理事务 | C133: 50
A134: 2082804 | B134: 拥军优属 | C134: 23
A135: 20830 | B135: 财政代缴社会保险费支出 | C135: 3
A136: 2083001 | B136: 财政代缴城乡居民基本养老保险费支出 | C136: 3
A137: 20899 | B137: 其他社会保障和就业支出 | C137: =C138 -> 207
A138: 2089999 | B138: 其他社会保障和就业支出 | C138: 207
A139: 210 | B139: 卫生健康支出 | C139: =C140+C142+C144+C147+C150+C153+C155 -> 5328
A140: 21001 | B140: 卫生健康管理事务 | C140: =SUM(C141) -> 76
A141: 2100199 | B141: 其他卫生健康管理事务支出 | C141: 76
A142: 21003 | B142: 基层医疗卫生机构 | C142: =C143 -> 417
A143: 2100302 | B143: 乡镇卫生院 | C143: 417
A144: 21004 | B144: 公共卫生 | C144: =C145+C146 -> 787
A145: 2100408 | B145: 基本公共卫生服务 | C145: 267
A146: 2100409 | B146: 重大公共卫生服务 | C146: 520
A147: 21007 | B147: 计划生育事务 | C147: =C148+C149 -> 632
A148: 2100717 | B148: 计划生育服务 | C148: 592
A149: 2100799 | B149: 其他计划生育事务支出 | C149: 40
A150: 21011 | B150: 行政事业单位医疗 | C150: =C151+C152 -> 1804
A151: 2101101 | B151: 行政单位医疗 | C151: 233
A152: 2101102 | B152: 事业单位医疗 | C152: 1571
A153: 21012 | B153: 财政对基本医疗保险基金的补助 | C153: =C154 -> 1588
A154: 2101202 | B154: 财政对城乡居民基本医疗保险基金的补助 | C154: 1588
A155: 21014 | B155: 优抚对象医疗 | C155: =C156 -> 24
A156: 2101401 | B156: 优抚对象医疗补助 | C156: =14+10 -> 24
A157: 211 | B157: 节能环保支出 | C157: =C158+C160+C163 -> 2932
A158: 21101 | B158: 环境保护管理事务 | C158: =C159 -> 170
A159: 2110102 | B159: 一般行政管理事务 | C159: 170
A160: 21102 | B160: 环境监测与监察 | C160: =C161+C162 -> 238
A161: 2110203 | B161: 建设项目环评审查与监督 | C161: 193
A162: 2110299 | B162: 其他环境监测与监察支出 | C162: 45
A163: 21103 | B163: 污染防治 | C163: =C164 -> 2524
A164: 2110301 | B164: 大气 | C164: 2524
A165: 212 | B165: 城乡社区支出 | C165: =C166+C172+C174+C176+C178 -> 5843
A166: 21201 | B166: 城乡社区管理事务 | C166: =SUM(C167:C171) -> 2856
A167: 2120101 | B167: 行政运行 | C167: 483
A168: 2120102 | B168: 一般行政管理事务 | C168: 96
A169: 2120104 | B169: 城管执法 | C169: 572
A170: 2120110 | B170: 执业资格注册、资质审查 | C170: 4
A171: 2120199 | B171: 其他城乡社区管理事务支出 | C171: 1701
A172: 21203 | B172: 城乡社区公共设施 | C172: =C173 -> 5
A173: 2120399 | B173: 其他城乡社区公共设施支出 | C173: 5
A174: 21205 | B174: 城乡社区环境卫生 | C174: =C175 -> 2835
A175: 2120501 | B175: 城乡社区环境卫生 | C175: 2835
A176: 21206 | B176: 建设市场管理与监督 | C176: =C177 -> 10
A177: 2120601 | B177: 建设市场管理与监督 | C177: 10
A178: 21299 | B178: 其他城乡社区支出 | C178: =C179 -> 137
A179: 2129999 | B179: 其他城乡社区支出 | C179: 137
A180: 213 | B180: 农林水支出 | C180: =C181+C190+C192+C196+C198+C201 -> 4340
A181: 21301 | B181: 农业农村 | C181: =SUM(C182:C189) -> 1440
A182: 2130102 | B182: 一般行政管理事务 | C182: 5
A183: 2130104 | B183: 事业运行 | C183: 488
A184: 2130108 | B184: 病虫害控制 | C184: 40
A185: 2130109 | B185: 农产品质量安全 | C185: 21
A186: 2130111 | B186: 统计监测与信息服务 | C186: 5
A187: 2130122 | B187: 农业生产发展 | C187: =644+8 -> 652
A188: 2130126 | B188: 农村社会事业 | C188: 130
A189: 2130199 | B189: 其他农业农村支出 | C189: =93+6 -> 99
A190: 21302 | B190: 林业和草原 | C190: =C191 -> 18
A191: 2130299 | B191: 其他林业支出 | C191: 18
A192: 21303 | B192: 水利 | C192: =SUM(C193:C195) -> 100
A193: 2130306 | B193: 水利工程运行与维护 | C193: 20
A194: 2130335 | B194: 农村人畜饮水 | C194: =30+30 -> 60
A195: 2130399 | B195: 其他水利支出 | C195: 20
A196: 21305 | B196: 扶贫 | C196: =C197 -> 245
A197: 2130599 | B197: 其他扶贫支出 | C197: =187+58 -> 245
A198: 21307 | B198: 农村综合改革 | C198: =SUM(C199:C200) -> 2197
A199: 2130705 | B199: 对村民委员会和村党支部的补助 | C199: 1864
A200: 2130799 | B200: 其他农村综合改革支出 | C200: =25+308 -> 333
... 34 more rows

Sheet 附表1-4
A1: 附表1-4
A2: 一般公共预算本级基本支出表
C3: 单位：万元
A4: 科目编码 | B4: 科目名称 | C4: 预算数
A5: 501 | B5: 机关工资福利支出 | C5: =SUM(C6:C9) -> 11296
A6: 50101 | B6: 工资奖金津补贴 | C6: 4415
A7: 50102 | B7: 社会保障缴费 | C7: 1611
A8: 50103 | B8: 住房公积金 | C8: 466
A9: 50199 | B9: 其他工资福利支出 | C9: 4804
A10: 502 | B10: 机关工资福利支出 | C10: =SUM(C11:C17) -> 1731
A11: 50201 | B11: 办公经费 | C11: 1494
A12: 50202 | B12: 会议费 | C12: 6
A13: 50203 | B13: 培训费 | C13: 15
A14: 50206 | B14: 公务接待费 | C14: 26
A15: 50208 | B15: 公务用车运行维护费 | C15: 177
A16: 50209 | B16: 维修（护）费 | C16: 6
A17: 50299 | B17: 其他商品和服务支出 | C17: 5
A18: 505 | B18: 对事业单位经常性补助 | C18: =SUM(C19:C20) -> 15706
A19: 50501 | B19: 工资福利支出 | C19: 14954
A20: 50502 | B20: 商品和服务支出 | C20: 752
A21: 509 | B21: 对个人和家庭的补助 | C21: =SUM(C22:C24) -> 3565
A22: 50901 | B22: 社会福利和救助 | C22: 372
A23: 50905 | B23: 离退休费 | C23: 2278
A24: 50999 | B24: 其他对个人和家庭补助 | C24: 915
A25: 合计 | C25: =C21+C18+C10+C5 -> 32297

Sheet 附表1-5
A1: 附表1-5
A2: 一般公共预算税收返还、一般性和专项转移支付分地区 安排情况表
D3: 单位：万元 | F3: 12.11 | H3: 12.22 | N3: 1.2
A4: 地区名称 | B4: 税收返还 | C4: 一般性转移支付 | D4: 专项转移支付 | H4: 科目编码 | I4: 科目（单位）名称 | J4: 合计 | N4: 科目编码 | O4: 科目（单位）名称 | P4: 合计
A5: 市（县、镇）名1 | E5: 105429 | F5: 595734.14 | G5: =104401+13602 -> 118003 | H5: 201 | I5: 一般公共服务支出类合计 | J5: 596221.15 | K5: =H5-A5 ->  | L5: =J5-#REF! ->  | M5: 75943 | N5: 201 | O5: 一般公共服务支出类合计 | P5: 643048.95 | Q5: =N5-A5 ->  | R5: =P5-#REF! ->  | T5: 717759 | V5: 201 | W5: 一般公共服务支出类合计 | X5: 659380.53 | Y5: =#REF!-X5 ->  | Z5: =V5-A5 -> 
A6: 市（县、镇）名2
A7: 市（县、镇）名3
A8: 市（县、镇）名4
A9: 市（县、镇）名5
A10: ……
A11: 未分配数
A12: 合计 | H12: ="" ->  | I12: ="" ->  | J12: ="" ->  | N12: ="" ->  | O12: ="" ->  | P12: ="" ->  | X12: =X13+#REF!+#REF!+#REF!+#REF!+#REF!+#REF!+#REF!+#REF!+#REF!+#REF!+#REF!+#REF!+#REF!+#REF!+#REF!+#REF!+#REF!+#REF!+#REF!+#REF! ->  | Y12: =Y13+#REF!+#REF!+#REF!+#REF!+#REF!+#REF!+#REF!+#REF!+#REF!+#REF!+#REF!+#REF!+#REF!+#REF!+#REF!+#REF!+#REF!+#REF!+#REF!+#REF! -> 
V13: 232 | W13: 债务付息支出类合计 | X13: 19998.00 | Y13: =#REF!-X13 ->  | Z13: =V13-A13 -> 232
V14: 23203 | W14: 地方政府一般债务付息支出款合计 | X14: 19998.00 | Y14: =#REF!-X14 ->  | Z14: =V14-A14 -> 23203
A15: 备注：此表无数据 | V15: 2320301 | W15: 地方政府一般债券付息支出项合计 | X15: 19998.00 | Y15: =#REF!-X15 ->  | Z15: =V15-A15 -> 

Sheet 附表1-6
A1: 附表1-6
A2: 一般公共预算专项转移支付分项目安排情况表
B3: 单位：万元
A4: 项目名称 | B4: 预算数
A5: 提前下达2021年支持学前教育发展中央资金 | B5: 112
A6: 提前下达2021年城乡义务教育中央补助资金 | B6: 328
A7: 提前下达2021年城乡义务教育中央补助资金 | B7: 2
A8: 提前下达2021年义务教育薄弱环节改善与能力提升中央补助资金 | B8: 168
A9: 提前下达2021年城乡义务教育市级补助资金 | B9: 82
B10: 0
A11: 提前下达城市社区党组织服务群众专项经费市级补助资金 | B11: 200
A12: 提前下达2021年中央补助地方美术馆、公共图书馆、文化馆免费开放专项资金 | B12: 3
A13: 提前下达2021年省级财政城乡居民养老、就业公共服务村级代办员补助资金 | B13: 2
A14: 提前下达2021年中央就业补助资金 | B14: 843
A15: 提前下达2020年中央优抚对象补助经费 | B15: 342
A16: 提前下达2021年优抚对象省级补助资金 | B16: 401
A17: 提前下达2021年省级财政退役安置补助经费 | B17: 74
A18: 提前下达中央财政2021年城乡居民基本养老保险补助资金 | B18: 1266
A19: 提前下达2021年省级城乡居民基本养老保险补助资金 | B19: 285
A20: 提前下达2021年市级城乡居民基本养老保险补助资金 | B20: 138
A21: 提前下达2021年省级城乡居民基本养老保险补助资金 | B21: 2
A22: 提前下达2021年市级城乡居民基本养老保险补助资金 | B22: 1
A23: 提前下达2021年中央优抚对象医疗保障经费 | B23: 14
A24: 提前下达2020年优抚对象省级补助资金 | B24: 10
A25: 市政环卫 | B25: 1690
A26: 提前下达2021年中央动物防疫补助经费 | B26: 8
A27: 提前下达2021年农业生产发展资金（用于耕地地力保护） | B27: 492
A28: 提前下达2021年中央农业生产发展资金 | B28: 147
A29: 提前下达2021年省级农业生产发展资金 | B29: 8
A30: 提前下达2021年省级乡村振兴（农村人居环境整治）专项资金 | B30: 130
A31: 提前下达2021年省级农村财会人员培训资金 | B31: 3
B32: 3
A33: 提前下达2021年市本级水利发展资金 | B33: 1
A34: 提前下达2021年市本级水利发展资金 | B34: 30
A35: 提前下达2021年中央水利发展资金 | B35: 20
A36: 提前下达2021年省级财政扶贫专项资金 | B36: 58
A37: 提前下达2021年省级农村综合改革转移支付资金 | B37: 144
A38: 提前下达2021年中央农村综合改革转移支付资金 | B38: 164
A39: 提前下达2020年省对下财力性转移支付 | B39: 390
A40: 提前下达2020年村级组织运转经费市级补助资金 | B40: 78
A41: 提前下达2021年中央财政农业保险保费补贴资金 | B41: 236
A42: 提前下达2020年省级财政农业保险保费补贴资金 | B42: 74
A43: 合计 | B43: =SUM(B5:B42) -> 7948

Sheet 附表1-7
A1: 附表1-7
A2: 政府性基金预算收入表
B3: 单位：万元
A4: 项目 | B4: 预算数
A5: 1.港口建设费收入
A6: 2.国家电影事业发展专项资金收入
A7: 3.国有土地收益基金收入
A8: 4.农业土地开发资金收入 | B8: 587
A9: 5.国有土地使用权出让收入 | B9: 176797
A10: 6.彩票公益金收入
A11: 7.城市基础设施配套费收入
A12: 8.小型水库移民扶助基金收入
A13: 9.车辆通行费
A14: 10.污水处理费收入
A15: 11.彩票发行机构和彩票销售机构的业务费用
A16: 12.其他政府性基金收入
A17: 13.上级提前下达转移支付 | B17: 86
A18: 14.上级补助收入 | B18: 1500
A19: 15.上年结余收入 | B19: 22896
A20: 合计 | B20: =SUM(B5:B19) -> 201866

Sheet 附表1-8
A1: 附表1-8
A2: 政府性基金预算支出表
B3: 单位：万元 | D3: 12.11 | F3: 12.22 | L3: 1.2
A4: 项目 | B4: 预算数 | F4: 科目编码 | G4: 科目（单位）名称 | H4: 合计 | L4: 科目编码 | M4: 科目（单位）名称 | N4: 合计
A5: 一、本级支出 | B5: =SUM(B6:B20) -> 201866 | C5: 105429 | D5: 595734.14 | E5: =104401+13602 -> 118003 | F5: 201 | G5: 一般公共服务支出类合计 | H5: 596221.15 | I5: =F5-A5 ->  | J5: =H5-B5 -> 394355.15 | K5: 75943 | L5: 201 | M5: 一般公共服务支出类合计 | N5: 643048.95 | O5: =L5-A5 ->  | P5: =N5-B5 -> 441182.95 | R5: 717759 | T5: 201 | U5: 一般公共服务支出类合计 | V5: 659380.53 | W5: =B5-V5 -> -457514.53 | X5: =T5-A5 -> 
A6: 1.科学技术支出 | B6: 2
A7: 2.文化旅游体育与传媒支出 | B7: 0
A8: 3.社会保障和就业支出 | B8: 84
A9: 4.节能环保支出 | B9: 0
A10: 5.城乡社区支出 | B10: 200180
A11: 6.农林水支出 | B11: 0
A12: 7.交通运输支出 | B12: 0
A13: 8.资源勘探信息等支出 | B13: 0
A14: 9.金融支出 | B14: 0
A15: 10.其他支出 | B15: 0
A16: 11.转移性支出 | B16: 0
A17: 12.债务还本支出 | B17: 0
A18: 13.债务付息支出 | B18: 1596
A19: 14.债务发行费支出 | B19: 4
A20: 15.调出资金 | B20: 0
A21: 合计 | B21: =B5 -> 201866 | F21: ="" ->  | G21: ="" ->  | H21: ="" ->  | L21: ="" ->  | M21: ="" ->  | N21: ="" ->  | V21: =V22+#REF!+#REF!+#REF!+#REF!+#REF!+#REF!+#REF!+#REF!+#REF!+#REF!+#REF!+#REF!+#REF!+#REF!+#REF!+#REF!+#REF!+#REF!+#REF!+#REF! ->  | W21: =W22+#REF!+#REF!+#REF!+#REF!+#REF!+#REF!+#REF!+#REF!+#REF!+#REF!+#REF!+#REF!+#REF!+#REF!+#REF!+#REF!+#REF!+#REF!+#REF!+#REF! -> 
T22: 232 | U22: 债务付息支出类合计 | V22: 19998.00 | W22: =B22-V22 -> -19998 | X22: =T22-A22 -> 232
T23: 23203 | U23: 地方政府一般债务付息支出款合计 | V23: 19998.00 | W23: =B23-V23 -> -19998 | X23: =T23-A23 -> 23203
T24: 2320301 | U24: 地方政府一般债券付息支出项合计 | V24: 19998.00 | W24: =B24-V24 -> -19998 | X24: =T24-A24 -> 2320301

Sheet 附表1-9
A1: 附表1-9
A2: 政府性基金预算本级支出表
C3: 单位：万元 | E3: 12.11 | G3: 12.22 | M3: 1.2
A4: 科目编码 | B4: 科目名称 | C4: 预算数 | G4: 科目编码 | H4: 科目（单位）名称 | I4: 合计 | M4: 科目编码 | N4: 科目（单位）名称 | O4: 合计
A5: 207 | B5: 文化旅游体育与传媒支出 | C5: 2 | D5: 105429 | E5: 595734.14 | F5: =104401+13602 -> 118003 | G5: 201 | H5: 一般公共服务支出类合计 | I5: 596221.15 | J5: =G5-A5 -> -6 | K5: =I5-C5 -> 596219.15 | L5: 75943 | M5: 201 | N5: 一般公共服务支出类合计 | O5: 643048.95 | P5: =M5-A5 -> -6 | Q5: =O5-C5 -> 643046.95 | S5: 717759 | U5: 201 | V5: 一般公共服务支出类合计 | W5: 659380.53 | X5: =C5-W5 -> -659378.53 | Y5: =U5-A5 -> -6
A6: 20707 | B6: 国家电影事业发展专项资金安排的支出 | C6: 2 | E6: 7616.62 | G6: 20101 | H6: 人大事务款合计 | I6: 7616.62 | J6: -606 | K6: 7614.62 | M6: 20101 | N6: 人大事务款合计 | O6: 7749.58 | P6: -606 | Q6: 7747.58 | U6: 20101 | V6: 人大事务款合计 | W6: 8475.47 | X6: -8473.47 | Y6: -606
A7: 2070701 | B7: 资助国产影片放映 | C7: 2 | E7: 3922.87 | G7: 2010101 | H7: 行政运行项合计 | I7: 3922.87 | J7: -60600 | K7: 3920.87 | L7: 750 | M7: 2010101 | N7: 行政运行项合计 | O7: 4041.81 | P7: -60600 | Q7: 4039.81 | U7: 2010101 | V7: 行政运行项合计 | W7: 4680.94 | X7: -4678.94 | Y7: -60600
A8: 208 | B8: 社会保障和就业支出 | C8: =SUM(C9) -> 84 | E8: 136 | G8: 2010199 | H8: 其他人大事务支出项合计 | I8: 135.60 | J8: 2009991 | K8: 52 | M8: 2010199 | N8: 其他人大事务支出项合计 | O8: 135.60 | P8: 2009991 | Q8: 52 | U8: 2010199 | V8: 其他人大事务支出项合计 | W8: 135.60 | X8: -51.6 | Y8: 2009991
A9: 20822 | B9: 大中型水库移民后期扶持基金支出 | C9: =SUM(C10:C11) -> 84 | D9: 105429 | E9: 595734.14 | F9: =104401+13602 -> 118003 | G9: 201 | H9: 一般公共服务支出类合计 | I9: 596221.15 | J9: (20621) | K9: 596137 | L9: 75943 | M9: 201 | N9: 一般公共服务支出类合计 | O9: 643048.95 | P9: (20621) | Q9: 642965 | S9: 717759 | U9: 201 | V9: 一般公共服务支出类合计 | W9: 659380.53 | X9: -659296.53 | Y9: -20621
A10: 2082201 | B10: 移民补助 | C10: 54 | E10: 7617 | G10: 20101 | H10: 人大事务款合计 | I10: 7616.62 | J10: (2062100) | K10: 7563 | M10: 20101 | N10: 人大事务款合计 | O10: 7749.58 | P10: (2062100) | Q10: 7696 | U10: 20101 | V10: 人大事务款合计 | W10: 8475.47 | X10: -8421.47 | Y10: -2062100
A11: 2082202 | B11: 基础设施建设和经济发展 | C11: 30 | E11: 3923 | G11: 2010101 | H11: 行政运行项合计 | I11: 3922.87 | J11: (72101) | K11: 3893 | L11: 750 | M11: 2010101 | N11: 行政运行项合计 | O11: 4041.81 | P11: (72101) | Q11: 4012 | U11: 2010101 | V11: 行政运行项合计 | W11: 4680.94 | X11: -4650.94 | Y11: -72101
A12: 212 | B12: 城乡社区支出 | C12: =C13+C21+C22 -> 200180 | E12: 136 | G12: 2010199 | H12: 其他人大事务支出项合计 | I12: 135.60 | J12: 2009987 | K12: -200044 | M12: 2010199 | N12: 其他人大事务支出项合计 | O12: 135.60 | P12: 2009987 | Q12: -200044 | U12: 2010199 | V12: 其他人大事务支出项合计 | W12: 135.60 | X12: 200044.4 | Y12: 2009987
A13: 21208 | B13: 国有土地使用权出让收入及对应专项债务收入安排的支出 | C13: =SUM(C14:C20) -> 198093 | G13: ="" ->  | H13: ="" ->  | I13: ="" ->  | M13: ="" ->  | N13: ="" ->  | O13: ="" ->  | W13: =W14+#REF!+#REF!+#REF!+#REF!+#REF!+#REF!+#REF!+#REF!+#REF!+#REF!+#REF!+#REF!+#REF!+#REF!+#REF!+#REF!+#REF!+#REF!+#REF!+#REF! ->  | X13: =X14+#REF!+#REF!+#REF!+#REF!+#REF!+#REF!+#REF!+#REF!+#REF!+#REF!+#REF!+#REF!+#REF!+#REF!+#REF!+#REF!+#REF!+#REF!+#REF!+#REF! -> 
A14: 2120801 | B14: 征地和拆迁补偿支出 | C14: 140845 | U14: 232 | V14: 债务付息支出类合计 | W14: 19998.00 | X14: =C14-W14 -> 120847 | Y14: =U14-A14 -> -2120569
A15: 2120802 | B15: 土地开发支出 | C15: 8000 | U15: 23203 | V15: 地方政府一般债务付息支出款合计 | W15: 19998.00 | X15: =C15-W15 -> -11998 | Y15: =U15-A15 -> -2097599
A16: 2120803 | B16: 城市建设支出 | C16: 19160 | U16: 2320301 | V16: 地方政府一般债券付息支出项合计 | W16: 19998.00 | X16: =C16-W16 -> -838 | Y16: =U16-A16 -> 199498
A17: 2120804 | B17: 农村基础设施建设支出 | C17: 2965
A18: 2120805 | B18: 补助被征地农民支出 | C18: 11872
A19: 2120807 | B19: 廉租住房支出
A20: 2120899 | B20: 其他国有土地收益基金及对应专项债务收入安排的支出 | C20: 15251
A21: 21211 | B21: 农业土地开发资金及对应专项债务收入安排的支出 | C21: 587
A22: 21213 | B22: 城市基础配套费安排的支出 | C22: =SUM(C23:C24) -> 1500
A23: 2121301 | B23: 城市公共设施 | C23: 630
A24: 2121399 | B24: 其他城市基础设施配套费安排的支出 | C24: 870
A25: 232 | B25: 债务付息支出 | C25: =C26 -> 1596
A26: 23204 | B26: 地方政府债务专项债务付息支出 | C26: 1596
A27: 2320411 | B27: 国有土地使用权出让金债务付息支出 | C27: 1596
A28: 233 | B28: 债务发行费用支出 | C28: 4
A29: 23304 | B29: 地方政府专项债务发行费用支出 | C29: 4
A30: 2330411 | B30: 国有土地使用权出让金债务发行费用支出 | C30: 4
A31: 合计 | C31: 201866

Sheet 附表1-10
A1: 附表1-10
A2: 政府性基金预算专项转移支付分地区安排情况表
B3: 单位：万元 | D3: 12.11 | F3: 12.22 | L3: 1.2
A4: 地区名称 | B4: 预算数 | F4: 科目编码 | G4: 科目（单位）名称 | H4: 合计 | L4: 科目编码 | M4: 科目（单位）名称 | N4: 合计
A5: 市（县、镇）名1 | C5: 105429 | D5: 595734.14 | E5: =104401+13602 -> 118003 | F5: 201 | G5: 一般公共服务支出类合计 | H5: 596221.15 | I5: =F5-A5 ->  | J5: =H5-#REF! ->  | K5: 75943 | L5: 201 | M5: 一般公共服务支出类合计 | N5: 643048.95 | O5: =L5-A5 ->  | P5: =N5-#REF! ->  | R5: 717759 | T5: 201 | U5: 一般公共服务支出类合计 | V5: 659380.53 | W5: =#REF!-V5 ->  | X5: =T5-A5 -> 
A6: 市（县、镇）名2
A7: 市（县、镇）名3
A8: 市（县、镇）名4
A9: 市（县、镇）名5
A10: ……
A11: 未分配数
A12: 合计 | F12: ="" ->  | G12: ="" ->  | H12: ="" ->  | L12: ="" ->  | M12: ="" ->  | N12: ="" ->  | V12: =V13+#REF!+#REF!+#REF!+#REF!+#REF!+#REF!+#REF!+#REF!+#REF!+#REF!+#REF!+#REF!+#REF!+#REF!+#REF!+#REF!+#REF!+#REF!+#REF!+#REF! ->  | W12: =W13+#REF!+#REF!+#REF!+#REF!+#REF!+#REF!+#REF!+#REF!+#REF!+#REF!+#REF!+#REF!+#REF!+#REF!+#REF!+#REF!+#REF!+#REF!+#REF!+#REF! -> 
T13: 232 | U13: 债务付息支出类合计 | V13: 19998.00 | W13: =#REF!-V13 ->  | X13: =T13-A13 -> 232
T14: 23203 | U14: 地方政府一般债务付息支出款合计 | V14: 19998.00 | W14: =#REF!-V14 ->  | X14: =T14-A14 -> 23203
A15: 备注：此表无数据 | T15: 2320301 | U15: 地方政府一般债券付息支出项合计 | V15: 19998.00 | W15: =#REF!-V15 ->  | X15: =T15-A15 -> 

Sheet 附表1-11
A1: 附表1-11
A2: 政府性基金预算专项转移支付分项目安排情况表
B3: 单位：万元
A4: 项目名称 | B4: 预算数
A5: 提前下达2021年补助地方国家电影事业发展专项资金 | B5: 2
A6: 提前下达2021年中央水库移民后期扶持基金 | B6: 54 | E6: 988753
A7: 提前下达2021年中央水库移民扶持基金 | B7: 30
A8: 合计 | B8: =SUM(B5:B7) -> 86
B9: .

Sheet 附表1-12
A1: 附表1-12
A2: 国有资本经营预算收入表
B3: 单位：万元
A4: 项目 | B4: 预算数
A5: 一、利润收入
A6: 二、股利、股息收入
A7: ……
A8: 合计
A12: 备注：此表无数据

Sheet 附表1-13
A1: 附表1-13
A2: 国有资本经营预算支出表
B3: 单位：万元 | D3: 12.11 | F3: 12.22 | L3: 1.2
A4: 项目 | B4: 预算数 | F4: 科目编码 | G4: 科目（单位）名称 | H4: 合计 | L4: 科目编码 | M4: 科目（单位）名称 | N4: 合计
A5: 一、本级支出 | C5: 105429 | D5: 595734.14 | E5: =104401+13602 -> 118003 | F5: 201 | G5: 一般公共服务支出类合计 | H5: 596221.15 | I5: =F5-A5 ->  | J5: =H5-B5 -> 596221.15 | K5: 75943 | L5: 201 | M5: 一般公共服务支出类合计 | N5: 643048.95 | O5: =L5-A5 ->  | P5: =N5-B5 -> 643048.95 | R5: 717759 | T5: 201 | U5: 一般公共服务支出类合计 | V5: 659380.53 | W5: =B5-V5 -> -659380.53 | X5: =T5-A5 -> 
A6: …… | D6: 136 | F6: 2010199 | G6: 其他人大事务支出项合计 | H6: 135.60 | I6: =F6-A6 ->  | J6: 136 | L6: 2010199 | M6: 其他人大事务支出项合计 | N6: 135.60 | O6: =L6-A6 ->  | P6: 136 | T6: 2010199 | U6: 其他人大事务支出项合计 | V6: 135.60 | W6: -135.6 | X6: =T6-A6 -> 
A7: 二、对下转移支付 | C7: 105429 | D7: 595734.14 | E7: =104401+13602 -> 118003 | F7: 201 | G7: 一般公共服务支出类合计 | H7: 596221.15 | I7: =F7-A7 ->  | J7: 596221 | K7: 75943 | L7: 201 | M7: 一般公共服务支出类合计 | N7: 643048.95 | O7: =L7-A7 ->  | P7: 643049 | R7: 717759 | T7: 201 | U7: 一般公共服务支出类合计 | V7: 659380.53 | W7: -659380.53 | X7: =T7-A7 -> 
A8: …… | D8: 136 | F8: 2010199 | G8: 其他人大事务支出项合计 | H8: 135.60 | I8: =F8-A8 ->  | J8: 136 | L8: 2010199 | M8: 其他人大事务支出项合计 | N8: 135.60 | O8: =L8-A8 ->  | P8: 136 | T8: 2010199 | U8: 其他人大事务支出项合计 | V8: 135.60 | W8: -135.6 | X8: =T8-A8 -> 
A9: 合计 | F9: ="" ->  | G9: ="" ->  | H9: ="" ->  | L9: ="" ->  | M9: ="" ->  | N9: ="" ->  | V9: =V10+#REF!+#REF!+#REF!+#REF!+#REF!+#REF!+#REF!+#REF!+#REF!+#REF!+#REF!+#REF!+#REF!+#REF!+#REF!+#REF!+#REF!+#REF!+#REF!+#REF! ->  | W9: =W10+#REF!+#REF!+#REF!+#REF!+#REF!+#REF!+#REF!+#REF!+#REF!+#REF!+#REF!+#REF!+#REF!+#REF!+#REF!+#REF!+#REF!+#REF!+#REF!+#REF! -> 
T10: 232 | U10: 债务付息支出类合计 | V10: 19998.00 | W10: =B10-V10 -> -19998 | X10: =T10-A10 -> 232
T11: 23203 | U11: 地方政府一般债务付息支出款合计 | V11: 19998.00 | W11: =B11-V11 -> -19998 | X11: =T11-A11 -> 23203
A12: 备注：此表无数据 | T12: 2320301 | U12: 地方政府一般债券付息支出项合计 | V12: 19998.00 | W12: =B12-V12 -> -19998 | X12: =T12-A12 -> 

Sheet 附表1-14
A1: 附表1-14
A2: 国有资本经营预算本级支出表
C3: 单位：万元 | E3: 12.11 | G3: 12.22 | M3: 1.2
A4: 科目编码 | B4: 科目名称 | C4: 预算数 | G4: 科目编码 | H4: 科目（单位）名称 | I4: 合计 | M4: 科目编码 | N4: 科目（单位）名称 | O4: 合计
A5: 223 | B5: 国有资本经营预算支出 | D5: 105429 | E5: 595734.14 | F5: =104401+13602 -> 118003 | G5: 201 | H5: 一般公共服务支出类合计 | I5: 596221.15 | J5: =G5-A5 -> (22) | K5: =I5-C5 -> 596221 | L5: 75943 | M5: 201 | N5: 一般公共服务支出类合计 | O5: 643048.95 | P5: =M5-A5 -> (22) | Q5: =O5-C5 -> 643049 | S5: 717759 | U5: 201 | V5: 一般公共服务支出类合计 | W5: 659380.53 | X5: =C5-W5 -> -659380.53 | Y5: =U5-A5 -> -22
A6: 22301 | B6: 解决历史遗留问题及改革成本支出 | E6: 7616.62 | G6: 20101 | H6: 人大事务款合计 | I6: 7616.62 | J6: -2200 | K6: 7616.62 | M6: 20101 | N6: 人大事务款合计 | O6: 7749.58 | P6: -2200 | Q6: 7749.58 | U6: 20101 | V6: 人大事务款合计 | W6: 8475.47 | X6: -8475.47 | Y6: -2200
A7: 2230101 | B7: 厂办大集体改革支出 | E7: 3922.87 | G7: 2010101 | H7: 行政运行项合计 | I7: 3922.87 | J7: -220000 | K7: 3922.87 | L7: 750 | M7: 2010101 | N7: 行政运行项合计 | O7: 4041.81 | P7: -220000 | Q7: 4041.81 | U7: 2010101 | V7: 行政运行项合计 | W7: 4680.94 | X7: -4680.94 | Y7: -220000
A8: …… | E8: 136 | G8: 2010199 | H8: 其他人大事务支出项合计 | I8: 135.60 | K8: 136 | M8: 2010199 | N8: 其他人大事务支出项合计 | O8: 135.60 | Q8: 136 | U8: 2010199 | V8: 其他人大事务支出项合计 | W8: 135.60 | X8: -135.6
A9: 22302 | B9: 国有企业资本金注入 | E9: 7617 | G9: 20101 | H9: 人大事务款合计 | I9: 7616.62 | J9: (2201) | K9: 7617 | M9: 20101 | N9: 人大事务款合计 | O9: 7749.58 | P9: (2201) | Q9: 7750 | U9: 20101 | V9: 人大事务款合计 | W9: 8475.47 | X9: -8475.47 | Y9: -2201
A10: 2230201 | B10: 国有经济结构调整支出 | E10: 3923 | G10: 2010101 | H10: 行政运行项合计 | I10: 3922.87 | J10: (220100) | K10: 3923 | L10: 750 | M10: 2010101 | N10: 行政运行项合计 | O10: 4041.81 | P10: (220100) | Q10: 4042 | U10: 2010101 | V10: 行政运行项合计 | W10: 4680.94 | X10: -4680.94 | Y10: -220100
A11: …… | E11: 136 | G11: 2010199 | H11: 其他人大事务支出项合计 | I11: 135.60 | K11: 136 | M11: 2010199 | N11: 其他人大事务支出项合计 | O11: 135.60 | Q11: 136 | U11: 2010199 | V11: 其他人大事务支出项合计 | W11: 135.60 | X11: -135.6
A12: 合计 | G12: ="" ->  | H12: ="" ->  | I12: ="" ->  | M12: ="" ->  | N12: ="" ->  | O12: ="" ->  | W12: =W13+#REF!+#REF!+#REF!+#REF!+#REF!+#REF!+#REF!+#REF!+#REF!+#REF!+#REF!+#REF!+#REF!+#REF!+#REF!+#REF!+#REF!+#REF!+#REF!+#REF! ->  | X12: =X13+#REF!+#REF!+#REF!+#REF!+#REF!+#REF!+#REF!+#REF!+#REF!+#REF!+#REF!+#REF!+#REF!+#REF!+#REF!+#REF!+#REF!+#REF!+#REF!+#REF! -> 
U13: 232 | V13: 债务付息支出类合计 | W13: 19998.00 | X13: =C13-W13 -> -19998 | Y13: =U13-A13 -> 232
U14: 23203 | V14: 地方政府一般债务付息支出款合计 | W14: 19998.00 | X14: =C14-W14 -> -19998 | Y14: =U14-A14 -> 23203
B15: 备注：此表无数据 | U15: 2320301 | V15: 地方政府一般债券付息支出项合计 | W15: 19998.00 | X15: =C15-W15 -> -19998 | Y15: =U15-A15 -> 2320301

Sheet 附表1-15
A1: 附表1-15
A2: 国有资本经营预算专项转移支付分地区安排情况表
B3: 单位：万元 | D3: 12.11 | F3: 12.22 | L3: 1.2
A4: 地区名称 | B4: 预算数 | F4: 科目编码 | G4: 科目（单位）名称 | H4: 合计 | L4: 科目编码 | M4: 科目（单位）名称 | N4: 合计
A5: 市（县、镇）名1 | C5: 105429 | D5: 595734.14 | E5: =104401+13602 -> 118003 | F5: 201 | G5: 一般公共服务支出类合计 | H5: 596221.15 | I5: =F5-A5 ->  | J5: =H5-#REF! ->  | K5: 75943 | L5: 201 | M5: 一般公共服务支出类合计 | N5: 643048.95 | O5: =L5-A5 ->  | P5: =N5-#REF! ->  | R5: 717759 | T5: 201 | U5: 一般公共服务支出类合计 | V5: 659380.53 | W5: =#REF!-V5 ->  | X5: =T5-A5 -> 
A6: 市（县、镇）名2
A7: 市（县、镇）名3
A8: 市（县、镇）名4
A9: 市（县、镇）名5
A10: ……
A11: 未分配数
A12: 合计 | F12: ="" ->  | G12: ="" ->  | H12: ="" ->  | L12: ="" ->  | M12: ="" ->  | N12: ="" ->  | V12: =V13+#REF!+#REF!+#REF!+#REF!+#REF!+#REF!+#REF!+#REF!+#REF!+#REF!+#REF!+#REF!+#REF!+#REF!+#REF!+#REF!+#REF!+#REF!+#REF!+#REF! ->  | W12: =W13+#REF!+#REF!+#REF!+#REF!+#REF!+#REF!+#REF!+#REF!+#REF!+#REF!+#REF!+#REF!+#REF!+#REF!+#REF!+#REF!+#REF!+#REF!+#REF!+#REF! -> 
T13: 232 | U13: 债务付息支出类合计 | V13: 19998.00 | W13: =#REF!-V13 ->  | X13: =T13-A13 -> 232
T14: 23203 | U14: 地方政府一般债务付息支出款合计 | V14: 19998.00 | W14: =#REF!-V14 ->  | X14: =T14-A14 -> 23203
T15: 2320301 | U15: 地方政府一般债券付息支出项合计 | V15: 19998.00 | W15: =#REF!-V15 ->  | X15: =T15-A15 -> 2320301
A16: 备注：此表无数据

Sheet 附表1-16
A1: 附表1-16
A2: 国有资本经营预算专项转移支付分项目安排情况表
B3: 单位：万元
A4: 项目名称 | B4: 预算数
E6: 988753
E7: 822672
A8: 合计
A13: 备注：此表无数据

Sheet 附表1-17
A1: 附表1-17
A2: 社会保险基金预算收入表
C3: 单位：万元
A4: 科目编码 | B4: 科目名称 | C4: 预算数
A5: 102 | B5: 社会保险基金收入 | C5: =+C6 -> 3078
A6: 10210 | B6: 城乡居民基本养老保险基金收入 | C6: =SUBTOTAL(9,C7:C10) -> 3078
A7: 1021001 | B7: 城乡居民基本养老保险基金缴费收入 | C7: 509
A8: 1021002 | B8: 城乡居民基本养老保险基金财政补助收入 | C8: 2432
A9: 1021003 | B9: 城乡居民基本养老保险基金利息收入 | C9: 50
A10: 1021004 | B10: 城乡居民基本养老保险基金委托投资收益 | C10: 87
A11: 110 | B11: 转移性收入 | C11: =C12+C14 -> 5441
A12: 11008 | B12: 上年结余收入 | C12: 5434
A13: 1100803 | B13: 社会保险基金预算上年结余收入 | C13: 5434
A14: 11016 | B14: 社会保险基金转移收入 | C14: 7
A15: 合计 | C15: =C11+C5 -> 8519

Sheet 附表1-18
A1: 附表1-18
A2: 社会保险基金预算支出表
C3: 单位：万元 | E3: 12.11 | G3: 12.22 | M3: 1.2
A4: 科目编码 | B4: 科目名称 | C4: 预算数 | G4: 科目编码 | H4: 科目（单位）名称 | I4: 合计 | M4: 科目编码 | N4: 科目（单位）名称 | O4: 合计
A5: 209 | B5: 社会保险基金支出 | C5: =+C6+C11 -> 2442 | D5: 105429 | E5: 595734.14 | F5: =104401+13602 -> 118003 | G5: 201 | H5: 一般公共服务支出类合计 | I5: 596221.15 | J5: =G5-A5 -> (8) | K5: =I5-C5 -> 593779 | L5: 75943 | M5: 201 | N5: 一般公共服务支出类合计 | O5: 643048.95 | P5: =M5-A5 -> (8) | Q5: =O5-C5 -> 640607 | S5: 717759 | U5: 201 | V5: 一般公共服务支出类合计 | W5: 659380.53 | X5: =C5-W5 -> -656938.53 | Y5: =U5-A5 -> -8
A6: 20910 | B6: 城乡居民基本养老保险基金支出 | C6: =C7+C8+C9+C10 -> 2442 | E6: 7617 | G6: 20101 | H6: 人大事务款合计 | I6: 7616.62 | J6: (809) | K6: 5175 | M6: 20101 | N6: 人大事务款合计 | O6: 7749.58 | P6: (809) | Q6: 5308 | U6: 20101 | V6: 人大事务款合计 | W6: 8475.47 | X6: -6033.47 | Y6: -809
A7: 2091001 | B7: 基础养老金支出 | C7: 2306 | E7: 3923 | G7: 2010101 | H7: 行政运行项合计 | I7: 3922.87 | J7: (80900) | K7: 1617 | L7: 750 | M7: 2010101 | N7: 行政运行项合计 | O7: 4041.81 | P7: (80900) | Q7: 1736 | U7: 2010101 | V7: 行政运行项合计 | W7: 4680.94 | X7: -2374.94 | Y7: -80900
A8: 2091002 | B8: 个人账户养老金支出 | C8: 98 | E8: 136 | G8: 2010199 | H8: 其他人大事务支出项合计 | I8: 135.60 | J8: (80803) | K8: 38 | M8: 2010199 | N8: 其他人大事务支出项合计 | O8: 135.60 | P8: (80803) | Q8: 38 | U8: 2010199 | V8: 其他人大事务支出项合计 | W8: 135.60 | X8: -37.6 | Y8: -80803
A9: 2091003 | B9: 丧葬抚恤补助支出 | C9: 38 | E9: 7617 | G9: 20101 | H9: 人大事务款合计 | I9: 7616.62 | J9: =G9-A9 -> (2070902) | K9: =I9-C9 -> 7579 | M9: 20101 | N9: 人大事务款合计 | O9: 7749.58 | P9: =M9-A9 -> (2070902) | Q9: =O9-C9 -> 7712 | U9: 20101 | V9: 人大事务款合计 | W9: 8475.47 | X9: =C9-W9 -> -8437.47 | Y9: =U9-A9 -> -2070902
A10: 2091099 | B10: 其他城乡居民基本养老保险基金支出 | E10: 3923 | G10: 2010101 | H10: 行政运行项合计 | I10: 3922.87 | J10: (80998) | K10: 3923 | L10: 750 | M10: 2010101 | N10: 行政运行项合计 | O10: 4041.81 | P10: (80998) | Q10: 4042 | U10: 2010101 | V10: 行政运行项合计 | W10: 4680.94 | X10: -4680.94 | Y10: -80998
A11: 20911 | B11: 机关事业基本养老保险基金支出 | C11: =SUBTOTAL(9,C12:C13) -> 0 | E11: 136 | G11: 2010199 | H11: 其他人大事务支出项合计 | I11: 135.60 | J11: 1989288 | K11: 136 | M11: 2010199 | N11: 其他人大事务支出项合计 | O11: 135.60 | P11: 1989288 | Q11: 136 | U11: 2010199 | V11: 其他人大事务支出项合计 | W11: 135.60 | X11: -135.6 | Y11: 1989288
A12: 2091101 | B12: 基本养老金支出 | E12: 7617 | G12: 20101 | H12: 人大事务款合计 | I12: 7616.62 | J12: (2071000) | K12: 7617 | M12: 20101 | N12: 人大事务款合计 | O12: 7749.58 | P12: (2071000) | Q12: 7750 | U12: 20101 | V12: 人大事务款合计 | W12: 8475.47 | X12: -8475.47 | Y12: -2071000
A13: 2091199 | B13: 其他机关事业单位基本养老保险基金支出 | E13: 3923 | G13: 2010101 | H13: 行政运行项合计 | I13: 3922.87 | J13: (81098) | K13: 3923 | L13: 750 | M13: 2010101 | N13: 行政运行项合计 | O13: 4041.81 | P13: (81098) | Q13: 4042 | U13: 2010101 | V13: 行政运行项合计 | W13: 4680.94 | X13: -4680.94 | Y13: -81098
A14: 230 | B14: 转移性支出 | C14: =C15+C17 -> 6077 | E14: 136 | G14: 2010199 | H14: 其他人大事务支出项合计 | I14: 135.60 | J14: 2009969 | K14: -5941 | M14: 2010199 | N14: 其他人大事务支出项合计 | O14: 135.60 | P14: 2009969 | Q14: -5941 | U14: 2010199 | V14: 其他人大事务支出项合计 | W14: 135.60 | X14: 5941.4 | Y14: 2009969
A15: 23009 | B15: 年终结余 | C15: =SUBTOTAL(9,C16) -> 6069
A16: 2300903 | B16: 社会保险基金预算年终结余 | C16: 6069
A17: 23017 | B17: 社会保险基金转移支出 | C17: 8 | E17: 136 | G17: 2010199 | H17: 其他人大事务支出项合计 | I17: 135.60 | J17: =G17-A17 -> 1987182 | K17: =I17-C17 -> 128 | M17: 2010199 | N17: 其他人大事务支出项合计 | O17: 135.60 | P17: =M17-A17 -> 1987182 | Q17: =O17-C17 -> 128 | U17: 2010199 | V17: 其他人大事务支出项合计 | W17: 135.60 | X17: =C17-W17 -> -127.6 | Y17: =U17-A17 -> 1987182
A18: 合计 | C18: =C14+C5 -> 8519

Sheet 附表2-1
A1: 高新区2020年地方政府债务限额及余额预算情况表
G2: 单位：亿元
A3: 地 区 | B3: 2020年债务限额 | E3: 2020年债务余额预计执行数
C4: 一般债务 | D4: 专项债务 | F4: 一般债务 | G4: 专项债务
A5: 公 式 | B5: A=B+C | C5: B | D5: C | E5: D=E+F | F5: E | G5: F
A6: 高新区 | B6: =C6+D6 -> 18.23 | C6: 11.83 | D6: 6.40 | E6: =F6+G6 -> 13.79 | F6: 10.28 | G6: 3.51

Sheet 附表2-2
A2: 高新区2020年地方政府一般债务余额情况表
C3: 单位：亿元
A4: 项 目 | B4: 预算数 | C4: 执行数
A5: 一、2019年末地方政府一般债务余额实际数 | B5: 10.72 | C5: 10.72
A6: 二、2020年末地方政府一般债务余额限额 | B6: 11.83 | C6: 11.83
A7: 三、2020年地方政府一般债务发行额 | B7: 2.70 | C7: 2.70
A8: 中央转贷地方的国际金融组织和外国政府贷款 | B8: 0.00 | C8: 0.00
A9: 2020年地方政府一般债券发行额 | B9: 2.70 | C9: 2.70
A10: 四、2020年地方政府一般债务还本额 | B10: 0.30 | C10: 0.30
A11: 五、2020年末地方政府一般债务余额预计执行数 | B11: 10.28 | C11: 10.28
A12: 六、2021年地方财政赤字
A13: 七、2021年地方政府一般债务余额限额 | B13: 11.83 | C13: 11.83

Sheet 附表2-3
A2: 高新区2020年地方政府专项债务余额情况表
C3: 单位：亿元
A4: 项 目 | B4: 预算数 | C4: 执行数
A5: 一、2019年末地方政府专项债务余额实际数 | B5: 3.21 | C5: 3.21
A6: 二、2020年末地方政府专项债务余额限额 | B6: 6.40 | C6: 6.40
A7: 三、2020年地方政府专项债务发行额 | B7: 0.30 | C7: 0.30
A8: 四、2020年地方政府专项债务还本额 | B8: 0.00 | C8: 0.00
A9: 五、2020年末地方政府专项债务余额预计执行数 | B9: 3.51 | C9: 3.51
A10: 六、2021年地方政府专项债务新增限额 | B10: 0.34 | C10: 0.34
A11: 七、2021年末地方政府专项债务余额限额 | B11: 6.74 | C11: 6.74

Sheet 附表2-4
A2: 高新区2021年地方政府债券发行及还本付息情况表
D3: 单位：亿元
A4: 项 目 | B4: 公式 | C4: 本地区 | D4: 本级
A5: 一、2020年发行预计执行数 | B5: A=B+D | C5: =C6+C8 -> 3.00 | D5: =D6+D8 -> 3.00
A6: （一）一般债券 | B6: B | C6: 2.70 | D6: 2.70
A7: 其中：再融资债券 | B7: C | C7: 2.70 | D7: 2.70
A8: （二）专项债券 | B8: D | C8: 0.30 | D8: 0.30
A9: 其中：再融资债券 | B9: E | C9: 0.00 | D9: 0.00
A10: 二、2020年还本预计执行数 | B10: F=G+H | C10: 3.00 | D10: 3.00
A11: （一）一般债券 | B11: G | C11: 3.00 | D11: 3.00
A12: （二）专项债券 | B12: H | C12: 0.00 | D12: 0.00
A13: 三、2020年付息预计执行数 | B13: I=J+K | C13: =C14+C15 -> 0.48 | D13: =D14+D15 -> 0.48
A14: （一）一般债券 | B14: J | C14: 0.35 | D14: 0.35
A15: （二）专项债券 | B15: K | C15: 0.13 | D15: 0.13
A16: 四、2021年还本预算数 | B16: L=M+O | C16: 2.98 | D16: 2.98
A17: （一）一般债券 | B17: M | C17: 2.98 | D17: 2.98
A18: 其中：再融资 | C18: 2.65 | D18: 2.65
A19: 财政预算安排 | B19: N | C19: 0.33 | D19: 0.33
A20: （二）专项债券 | B20: O | C20: 0.00 | D20: 0.00
A21: 其中：再融资 | C21: 0.00 | D21: 0.00
A22: 财政预算安排 | B22: P | C22: 0.00 | D22: 0.00
A23: 五、2021年付息预算数 | B23: Q=R+S | C23: =C24+C25 -> 0.48 | D23: =D24+D25 -> 0.48
A24: （一）一般债券 | B24: R | C24: 0.34 | D24: 0.34
A25: （二）专项债券 | B25: S | C25: 0.14 | D25: 0.14

Sheet 附表2-5
A2: 高新区2021年地方政府债务限额提前下达情况表
A3: 单位：亿元
A4: 项目 | B4: 公 式 | C4: 本地区 | D4: 本级 | E4: 下级
A5: 一：2020年地方政府债务限额 | B5: A=B+C | C5: =C6+C7 -> 18.23
A6: 其中： 一般债务限额 | B6: B | C6: 11.83
A7: 专项债务限额 | B7: C | C7: 6.40
A8: 二：提前下达的2021年地方政府债务新增限额 | B8: D=E+F | C8: =C9+C10 -> 0.34
A9: 其中： 一般债务限额 | B9: E
A10: 专项债务限额 | B10: F | C10: 0.34
A11: 注：本表反映本地区及本级年初预算中列示的地方政府债务限额情况，由县级以上地方各级财政部门在同级人大常委会批准年度预算后二十日内公开。

Sheet 附表2-6
B2: 高新区2021年新增地方政府债券资金安排表
F3: 单位：亿元
A4: 序号 | B4: 项目名称 | C4: 项目领域 | D4: 项目主管部门 | E4: 债券性质 | F4: 债券规模
B8: 备注：此表无数据

Sheet 附表2-7
A2: 高新区2021年地方政府再融资债券分月发行安排表
B3: 单位：亿元
A4: 时间 | B4: 再融资债券计划发行规模
A5: 合计
A6: 1月
A7: 2月
A8: 3月
A9: 4月
A10: 5月
A11: 6月
A12: 7月
A13: 8月
A14: 9月
A15: 10月
A16: 11月
A17: 12月
B18: 备注：此表无数据
